{"text_format":"3","workbook":"xlsx","n_sheets":2,"sheets":["Orçamento de Casamento","Detalhes do Orçamento"],"not_rendered":{"charts":1,"images":1,"defined_names":2},"read":"whole","date_system":"1900"}

{"sheet":"Orçamento de Casamento","index":0,"n_rows":16,"n_cols":16,"rows_kept":16,"merged":[[1,1,1,5]]}
[{"$nulls":6}," "]
[null,"EMÍLIA + BRUNO\nDAR O NÓ"]
[{"$nulls":7}," "]
[]
[null,"CATEGORIA","CUSTO ESTIMADO","CUSTOS REAIS","DESVIO","% DO ORÇAMENTO",{"$nulls":3},"Não ordenado","Custos Estimados","Custos Reais","Custo Estimado – Valor de Classificação","Classificação","N.º","Ordenação"]
[null,{"$f":"P6","v":"Copo-d'água"},{"$f":"VLOOKUP(TBL_Resumo[[#This Row],[CATEGORIA]],TBL_RankingData,2,FALSE)","v":{"v":14500,"d":"14,500 €"}},{"$f":"IF(VLOOKUP(TBL_Resumo[[#This Row],[CATEGORIA]],TBL_RankingData,3,FALSE)=0,\"\",VLOOKUP(TBL_Resumo[[#This Row],[CATEGORIA]],TBL_RankingData,3,FALSE))","v":{"v":12800,"d":"12,800 €"}},{"$f":"IF(OR(TBL_Resumo[[#This Row],[CUSTO ESTIMADO]]=\"\",TBL_Resumo[[#This Row],[CUSTOS REAIS]]=\"\"),\"\",TBL_Resumo[[#This Row],[CUSTO ESTIMADO]]-TBL_Resumo[[#This Row],[CUSTOS REAIS]])","v":{"v":1700,"d":"1,700 €"}},{"$f":"TBL_Resumo[[#This Row],[CUSTO ESTIMADO]]/SUM(TBL_Resumo[CUSTO ESTIMADO])","v":{"v":0.48739495798319327,"d":"48.7%"}},{"$nulls":3},"Copo-d'água",{"$f":"TBL_CopoDeÁgua[[#Totals],[ESTIMATIVA]]","v":14500},{"$f":"TBL_CopoDeÁgua[[#Totals],[REAL]]","v":12800},{"$f":"K6-O6/100","v":14499.99},{"$f":"_xlfn.RANK.AVG(M6,$M$6:$M$15)","v":1},1,{"$f":"INDEX(TBL_RankingData,MATCH(O6,$N$6:$N$15,0),1)","v":"Copo-d'água"}]
[null,{"$f":"P7","v":"Vestuário"},{"$f":"VLOOKUP(TBL_Resumo[[#This Row],[CATEGORIA]],TBL_RankingData,2,FALSE)","v":{"v":4000,"d":"4,000 €"}},{"$f":"IF(VLOOKUP(TBL_Resumo[[#This Row],[CATEGORIA]],TBL_RankingData,3,FALSE)=0,\"\",VLOOKUP(TBL_Resumo[[#This Row],[CATEGORIA]],TBL_RankingData,3,FALSE))","v":{"v":2900,"d":"2,900 €"}},{"$f":"IF(OR(TBL_Resumo[[#This Row],[CUSTO ESTIMADO]]=\"\",TBL_Resumo[[#This Row],[CUSTOS REAIS]]=\"\"),\"\",TBL_Resumo[[#This Row],[CUSTO ESTIMADO]]-TBL_Resumo[[#This Row],[CUSTOS REAIS]])","v":{"v":1100,"d":"1,100 €"}},{"$f":"TBL_Resumo[[#This Row],[CUSTO ESTIMADO]]/SUM(TBL_Resumo[CUSTO ESTIMADO])","v":{"v":0.13445378151260504,"d":"13.4%"}},{"$nulls":3},"Vestuário",{"$f":"TBL_Vestuário[[#Totals],[ESTIMATIVA]]","v":4000},{"$f":"TBL_Vestuário[[#Totals],[REAL]]","v":2900},{"$f":"K7-O7/100","v":3999.98},2,2,"Vestuário"]
[null,"Flores e decorações",{"$f":"VLOOKUP(TBL_Resumo[[#This Row],[CATEGORIA]],TBL_RankingData,2,FALSE)","v":{"v":3000,"d":"3,000 €"}},{"$f":"IF(VLOOKUP(TBL_Resumo[[#This Row],[CATEGORIA]],TBL_RankingData,3,FALSE)=0,\"\",VLOOKUP(TBL_Resumo[[#This Row],[CATEGORIA]],TBL_RankingData,3,FALSE))","v":""},{"$f":"IF(OR(TBL_Resumo[[#This Row],[CUSTO ESTIMADO]]=\"\",TBL_Resumo[[#This Row],[CUSTOS REAIS]]=\"\"),\"\",TBL_Resumo[[#This Row],[CUSTO ESTIMADO]]-TBL_Resumo[[#This Row],[CUSTOS REAIS]])","v":""},{"$f":"TBL_Resumo[[#This Row],[CUSTO ESTIMADO]]/SUM(TBL_Resumo[CUSTO ESTIMADO])","v":{"v":0.10084033613445378,"d":"10.1%"}},{"$nulls":3},"Flores e decorações",{"$f":"TBL_FloresEDecoração[[#Totals],[ESTIMATIVA]]","v":3000},{"$f":"TBL_FloresEDecoração[[#Totals],[REAL]]","v":0},2999.97,3,3,"Flores e decorações"]
[null,"Fotografias e vídeo",{"$f":"VLOOKUP(TBL_Resumo[[#This Row],[CATEGORIA]],TBL_RankingData,2,FALSE)","v":{"v":2500,"d":"2,500 €"}},{"$f":"IF(VLOOKUP(TBL_Resumo[[#This Row],[CATEGORIA]],TBL_RankingData,3,FALSE)=0,\"\",VLOOKUP(TBL_Resumo[[#This Row],[CATEGORIA]],TBL_RankingData,3,FALSE))","v":""},{"$f":"IF(OR(TBL_Resumo[[#This Row],[CUSTO ESTIMADO]]=\"\",TBL_Resumo[[#This Row],[CUSTOS REAIS]]=\"\"),\"\",TBL_Resumo[[#This Row],[CUSTO ESTIMADO]]-TBL_Resumo[[#This Row],[CUSTOS REAIS]])","v":""},{"$f":"TBL_Resumo[[#This Row],[CUSTO ESTIMADO]]/SUM(TBL_Resumo[CUSTO ESTIMADO])","v":{"v":0.08403361344537816,"d":"8.4%"}},{"$nulls":3},"Música",{"$f":"TBL_Música[[#Totals],[ESTIMATIVA]]","v":1800},{"$f":"TBL_Música[[#Totals],[REAL]]","v":0},1799.96,5,4,"Fotografias e vídeo"]
[null,"Música",{"$f":"VLOOKUP(TBL_Resumo[[#This Row],[CATEGORIA]],TBL_RankingData,2,FALSE)","v":{"v":1800,"d":"1,800 €"}},{"$f":"IF(VLOOKUP(TBL_Resumo[[#This Row],[CATEGORIA]],TBL_RankingData,3,FALSE)=0,\"\",VLOOKUP(TBL_Resumo[[#This Row],[CATEGORIA]],TBL_RankingData,3,FALSE))","v":""},{"$f":"IF(OR(TBL_Resumo[[#This Row],[CUSTO ESTIMADO]]=\"\",TBL_Resumo[[#This Row],[CUSTOS REAIS]]=\"\"),\"\",TBL_Resumo[[#This Row],[CUSTO ESTIMADO]]-TBL_Resumo[[#This Row],[CUSTOS REAIS]])","v":""},{"$f":"TBL_Resumo[[#This Row],[CUSTO ESTIMADO]]/SUM(TBL_Resumo[CUSTO ESTIMADO])","v":{"v":0.06050420168067227,"d":"6.1%"}},{"$nulls":3},"Fotografias e vídeo",{"$f":"TBL_FotografiasEVídeo[[#Totals],[ESTIMATIVA]]","v":2500},{"$f":"TBL_FotografiasEVídeo[[#Totals],[REAL]]","v":0},2499.95,4,5,"Música"]
[null,"Lembranças e presentes",{"$f":"VLOOKUP(TBL_Resumo[[#This Row],[CATEGORIA]],TBL_RankingData,2,FALSE)","v":{"v":1100,"d":"1,100 €"}},{"$f":"IF(VLOOKUP(TBL_Resumo[[#This Row],[CATEGORIA]],TBL_RankingData,3,FALSE)=0,\"\",VLOOKUP(TBL_Resumo[[#This Row],[CATEGORIA]],TBL_RankingData,3,FALSE))","v":""},{"$f":"IF(OR(TBL_Resumo[[#This Row],[CUSTO ESTIMADO]]=\"\",TBL_Resumo[[#This Row],[CUSTOS REAIS]]=\"\"),\"\",TBL_Resumo[[#This Row],[CUSTO ESTIMADO]]-TBL_Resumo[[#This Row],[CUSTOS REAIS]])","v":""},{"$f":"TBL_Resumo[[#This Row],[CUSTO ESTIMADO]]/SUM(TBL_Resumo[CUSTO ESTIMADO])","v":{"v":0.03697478991596639,"d":"3.7%"}},{"$nulls":3},"Lembranças e presentes",{"$f":"TBL_LembrançasEPresentes[[#Totals],[ESTIMATIVA]]","v":1100},{"$f":"TBL_LembrançasEPresentes[[#Totals],[REAL]]","v":0},1099.94,6,6,"Lembranças e presentes"]
[null,{"$f":"P12","v":"Alianças"},{"$f":"VLOOKUP(TBL_Resumo[[#This Row],[CATEGORIA]],TBL_RankingData,2,FALSE)","v":{"v":1100,"d":"1,100 €"}},{"$f":"IF(VLOOKUP(TBL_Resumo[[#This Row],[CATEGORIA]],TBL_RankingData,3,FALSE)=0,\"\",VLOOKUP(TBL_Resumo[[#This Row],[CATEGORIA]],TBL_RankingData,3,FALSE))","v":""},{"$f":"IF(OR(TBL_Resumo[[#This Row],[CUSTO ESTIMADO]]=\"\",TBL_Resumo[[#This Row],[CUSTOS REAIS]]=\"\"),\"\",TBL_Resumo[[#This Row],[CUSTO ESTIMADO]]-TBL_Resumo[[#This Row],[CUSTOS REAIS]])","v":""},{"$f":"TBL_Resumo[[#This Row],[CUSTO ESTIMADO]]/SUM(TBL_Resumo[CUSTO ESTIMADO])","v":{"v":0.03697478991596639,"d":"3.7%"}},{"$nulls":3},"Cerimónia",{"$f":"TBL_Cerimónia[[#Totals],[ESTIMATIVA]]","v":800},{"$f":"TBL_Cerimónia[[#Totals],[REAL]]","v":0},799.93,8,7,"Alianças"]
[null,"Cerimónia",{"$f":"VLOOKUP(TBL_Resumo[[#This Row],[CATEGORIA]],TBL_RankingData,2,FALSE)","v":{"v":800,"d":"800 €"}},{"$f":"IF(VLOOKUP(TBL_Resumo[[#This Row],[CATEGORIA]],TBL_RankingData,3,FALSE)=0,\"\",VLOOKUP(TBL_Resumo[[#This Row],[CATEGORIA]],TBL_RankingData,3,FALSE))","v":""},{"$f":"IF(OR(TBL_Resumo[[#This Row],[CUSTO ESTIMADO]]=\"\",TBL_Resumo[[#This Row],[CUSTOS REAIS]]=\"\"),\"\",TBL_Resumo[[#This Row],[CUSTO ESTIMADO]]-TBL_Resumo[[#This Row],[CUSTOS REAIS]])","v":""},{"$f":"TBL_Resumo[[#This Row],[CUSTO ESTIMADO]]/SUM(TBL_Resumo[CUSTO ESTIMADO])","v":{"v":0.02689075630252101,"d":"2.7%"}},{"$nulls":3},"Artigos de Papelaria",{"$f":"TBL_ArtigosDePapelaria[[#Totals],[ESTIMATIVA]]","v":500},{"$f":"TBL_ArtigosDePapelaria[[#Totals],[REAL]]","v":0},499.92,9,8,"Cerimónia"]
[null,"Artigos de Papelaria",{"$f":"VLOOKUP(TBL_Resumo[[#This Row],[CATEGORIA]],TBL_RankingData,2,FALSE)","v":{"v":500,"d":"500 €"}},{"$f":"IF(VLOOKUP(TBL_Resumo[[#This Row],[CATEGORIA]],TBL_RankingData,3,FALSE)=0,\"\",VLOOKUP(TBL_Resumo[[#This Row],[CATEGORIA]],TBL_RankingData,3,FALSE))","v":""},{"$f":"IF(OR(TBL_Resumo[[#This Row],[CUSTO ESTIMADO]]=\"\",TBL_Resumo[[#This Row],[CUSTOS REAIS]]=\"\"),\"\",TBL_Resumo[[#This Row],[CUSTO ESTIMADO]]-TBL_Resumo[[#This Row],[CUSTOS REAIS]])","v":""},{"$f":"TBL_Resumo[[#This Row],[CUSTO ESTIMADO]]/SUM(TBL_Resumo[CUSTO ESTIMADO])","v":{"v":0.01680672268907563,"d":"1.7%"}},{"$nulls":3},"Alianças",{"$f":"TBL_Alianças[[#Totals],[ESTIMATIVA]]","v":1100},{"$f":"TBL_Alianças[[#Totals],[REAL]]","v":0},1099.91,7,9,"Artigos de Papelaria"]
[null,"Transportes",{"$f":"VLOOKUP(TBL_Resumo[[#This Row],[CATEGORIA]],TBL_RankingData,2,FALSE)","v":{"v":450,"d":"450 €"}},{"$f":"IF(VLOOKUP(TBL_Resumo[[#This Row],[CATEGORIA]],TBL_RankingData,3,FALSE)=0,\"\",VLOOKUP(TBL_Resumo[[#This Row],[CATEGORIA]],TBL_RankingData,3,FALSE))","v":""},{"$f":"IF(OR(TBL_Resumo[[#This Row],[CUSTO ESTIMADO]]=\"\",TBL_Resumo[[#This Row],[CUSTOS REAIS]]=\"\"),\"\",TBL_Resumo[[#This Row],[CUSTO ESTIMADO]]-TBL_Resumo[[#This Row],[CUSTOS REAIS]])","v":""},{"$f":"TBL_Resumo[[#This Row],[CUSTO ESTIMADO]]/SUM(TBL_Resumo[CUSTO ESTIMADO])","v":{"v":0.015126050420168067,"d":"1.5%"}},{"$nulls":3},"Transportes",{"$f":"TBL_Transporte[[#Totals],[ESTIMATIVA]]","v":450},{"$f":"TBL_Transporte[[#Totals],[REAL]]","v":0},449.9,10,10,"Transportes"]
[null,"Total",{"$f":"SUBTOTAL(109,TBL_Resumo[CUSTO ESTIMADO])","v":{"v":29750,"d":"29,750 €"}},{"$f":"SUBTOTAL(109,TBL_Resumo[CUSTOS REAIS])","v":{"v":15700,"d":"15,700 €"}},{"$f":"TBL_Resumo[[#Totals],[CUSTO ESTIMADO]]-TBL_Resumo[[#Totals],[CUSTOS REAIS]]","v":{"v":14050,"d":"14,050 €"}},{"$f":"SUBTOTAL(109,TBL_Resumo[% DO ORÇAMENTO])","v":{"v":1,"d":"100%"}}]

{"sheet":"Detalhes do Orçamento","index":1,"n_rows":91,"n_cols":6,"rows_kept":91}
[{"$nulls":5}," "]
[null,"DETALHES DO ORÇAMENTO"]
[]
[null,"COPO DE ÁGUA","ESTIMATIVA","REAL","DESVIO"]
[null,"Local e alugueres",{"v":8000,"d":"8,000.00 €"},{"v":7800,"d":"7,800.00 €"},{"$f":"IF(OR(TBL_CopoDeÁgua[[#This Row],[ESTIMATIVA]]=\"\",TBL_CopoDeÁgua[[#This Row],[REAL]]=\"\"),\"\",TBL_CopoDeÁgua[[#This Row],[ESTIMATIVA]]-TBL_CopoDeÁgua[[#This Row],[REAL]])","v":{"v":200,"d":"200.00 €"}}]
[null,"Comida e serviço",{"v":4000,"d":"4,000.00 €"},{"v":4200,"d":"4,200.00 €"},{"$f":"IF(OR(TBL_CopoDeÁgua[[#This Row],[ESTIMATIVA]]=\"\",TBL_CopoDeÁgua[[#This Row],[REAL]]=\"\"),\"\",TBL_CopoDeÁgua[[#This Row],[ESTIMATIVA]]-TBL_CopoDeÁgua[[#This Row],[REAL]])","v":{"v":-200,"d":"-200.00 €"}}]
[null,"Bebidas",{"v":1000,"d":"1,000.00 €"},{"v":800,"d":"800.00 €"},{"$f":"IF(OR(TBL_CopoDeÁgua[[#This Row],[ESTIMATIVA]]=\"\",TBL_CopoDeÁgua[[#This Row],[REAL]]=\"\"),\"\",TBL_CopoDeÁgua[[#This Row],[ESTIMATIVA]]-TBL_CopoDeÁgua[[#This Row],[REAL]])","v":{"v":200,"d":"200.00 €"}}]
[null,"Bolo",{"v":1000,"d":"1,000.00 €"},null,{"$f":"IF(OR(TBL_CopoDeÁgua[[#This Row],[ESTIMATIVA]]=\"\",TBL_CopoDeÁgua[[#This Row],[REAL]]=\"\"),\"\",TBL_CopoDeÁgua[[#This Row],[ESTIMATIVA]]-TBL_CopoDeÁgua[[#This Row],[REAL]])","v":""}]
[null,"Taxas diversas",{"v":500,"d":"500.00 €"},null,{"$f":"IF(OR(TBL_CopoDeÁgua[[#This Row],[ESTIMATIVA]]=\"\",TBL_CopoDeÁgua[[#This Row],[REAL]]=\"\"),\"\",TBL_CopoDeÁgua[[#This Row],[ESTIMATIVA]]-TBL_CopoDeÁgua[[#This Row],[REAL]])","v":""}]
[null,"TOTAL DE COPO-D'ÁGUA",{"$f":"SUBTOTAL(109,TBL_CopoDeÁgua[ESTIMATIVA])","v":{"v":14500,"d":"14,500.00 €"}},{"$f":"SUBTOTAL(109,TBL_CopoDeÁgua[REAL])","v":{"v":12800,"d":"12,800.00 €"}},{"$f":"TBL_CopoDeÁgua[[#Totals],[ESTIMATIVA]]-TBL_CopoDeÁgua[[#Totals],[REAL]]","v":{"v":1700,"d":"1,700.00 €"}}]
[]
[]
[null,"VESTUÁRIO","ESTIMATIVA","REAL","DESVIO"]
[null,"Smoking, fato e/ou vestidos",{"v":3000,"d":"3,000.00 €"},{"v":2900,"d":"2,900.00 €"},{"$f":"IF(OR(TBL_Vestuário[[#This Row],[ESTIMATIVA]]=\"\",TBL_Vestuário[[#This Row],[REAL]]=\"\"),\"\",TBL_Vestuário[[#This Row],[ESTIMATIVA]]-TBL_Vestuário[[#This Row],[REAL]])","v":{"v":100,"d":"100.00 €"}}]
[null,"Alterações",{"v":100,"d":"100.00 €"},null,{"$f":"IF(OR(TBL_Vestuário[[#This Row],[ESTIMATIVA]]=\"\",TBL_Vestuário[[#This Row],[REAL]]=\"\"),\"\",TBL_Vestuário[[#This Row],[ESTIMATIVA]]-TBL_Vestuário[[#This Row],[REAL]])","v":""}]
[null,"Véu e grinalda",{"v":200,"d":"200.00 €"},null,{"$f":"IF(OR(TBL_Vestuário[[#This Row],[ESTIMATIVA]]=\"\",TBL_Vestuário[[#This Row],[REAL]]=\"\"),\"\",TBL_Vestuário[[#This Row],[ESTIMATIVA]]-TBL_Vestuário[[#This Row],[REAL]])","v":""}]
[null,"Acessórios",{"v":100,"d":"100.00 €"},null,{"$f":"IF(OR(TBL_Vestuário[[#This Row],[ESTIMATIVA]]=\"\",TBL_Vestuário[[#This Row],[REAL]]=\"\"),\"\",TBL_Vestuário[[#This Row],[ESTIMATIVA]]-TBL_Vestuário[[#This Row],[REAL]])","v":""}]
[null,"Cabelo e maquilhagem",{"v":500,"d":"500.00 €"},null,{"$f":"IF(OR(TBL_Vestuário[[#This Row],[ESTIMATIVA]]=\"\",TBL_Vestuário[[#This Row],[REAL]]=\"\"),\"\",TBL_Vestuário[[#This Row],[ESTIMATIVA]]-TBL_Vestuário[[#This Row],[REAL]])","v":""}]
[null,"Taxas diversas",{"v":100,"d":"100.00 €"},null,{"$f":"IF(OR(TBL_Vestuário[[#This Row],[ESTIMATIVA]]=\"\",TBL_Vestuário[[#This Row],[REAL]]=\"\"),\"\",TBL_Vestuário[[#This Row],[ESTIMATIVA]]-TBL_Vestuário[[#This Row],[REAL]])","v":""}]
[null,"TOTAL DE VESTUÁRIO",{"$f":"SUBTOTAL(109,TBL_Vestuário[ESTIMATIVA])","v":{"v":4000,"d":"4,000.00 €"}},{"$f":"SUBTOTAL(109,TBL_Vestuário[REAL])","v":{"v":2900,"d":"2,900.00 €"}},{"$f":"TBL_Vestuário[[#Totals],[ESTIMATIVA]]-TBL_Vestuário[[#Totals],[REAL]]","v":{"v":1100,"d":"1,100.00 €"}}]
[]
[]
[null,"FLORES E DECORAÇÕES","ESTIMATIVA","REAL","DESVIO"]
[null,"Arranjos florais para a cerimónia",{"v":1000,"d":"1,000.00 €"},null,{"$f":"IF(OR(TBL_FloresEDecoração[[#This Row],[ESTIMATIVA]]=\"\",TBL_FloresEDecoração[[#This Row],[REAL]]=\"\"),\"\",TBL_FloresEDecoração[[#This Row],[ESTIMATIVA]]-TBL_FloresEDecoração[[#This Row],[REAL]])","v":""}]
[null,"Botões e cesto da menina das flores",{"v":500,"d":"500.00 €"},null,{"$f":"IF(OR(TBL_FloresEDecoração[[#This Row],[ESTIMATIVA]]=\"\",TBL_FloresEDecoração[[#This Row],[REAL]]=\"\"),\"\",TBL_FloresEDecoração[[#This Row],[ESTIMATIVA]]-TBL_FloresEDecoração[[#This Row],[REAL]])","v":""}]
[null,"Almofada para alianças",{"v":100,"d":"100.00 €"},null,{"$f":"IF(OR(TBL_FloresEDecoração[[#This Row],[ESTIMATIVA]]=\"\",TBL_FloresEDecoração[[#This Row],[REAL]]=\"\"),\"\",TBL_FloresEDecoração[[#This Row],[ESTIMATIVA]]-TBL_FloresEDecoração[[#This Row],[REAL]])","v":""}]
[null,"Bouquets",{"v":500,"d":"500.00 €"},null,{"$f":"IF(OR(TBL_FloresEDecoração[[#This Row],[ESTIMATIVA]]=\"\",TBL_FloresEDecoração[[#This Row],[REAL]]=\"\"),\"\",TBL_FloresEDecoração[[#This Row],[ESTIMATIVA]]-TBL_FloresEDecoração[[#This Row],[REAL]])","v":""}]
[null,"Flores de Lapela",{"v":100,"d":"100.00 €"},null,{"$f":"IF(OR(TBL_FloresEDecoração[[#This Row],[ESTIMATIVA]]=\"\",TBL_FloresEDecoração[[#This Row],[REAL]]=\"\"),\"\",TBL_FloresEDecoração[[#This Row],[ESTIMATIVA]]-TBL_FloresEDecoração[[#This Row],[REAL]])","v":""}]
[null,"Ramalhetes (Acessório)",{"v":200,"d":"200.00 €"},null,{"$f":"IF(OR(TBL_FloresEDecoração[[#This Row],[ESTIMATIVA]]=\"\",TBL_FloresEDecoração[[#This Row],[REAL]]=\"\"),\"\",TBL_FloresEDecoração[[#This Row],[ESTIMATIVA]]-TBL_FloresEDecoração[[#This Row],[REAL]])","v":""}]
[null,"Decorações do copo-de-água",{"v":300,"d":"300.00 €"},null,{"$f":"IF(OR(TBL_FloresEDecoração[[#This Row],[ESTIMATIVA]]=\"\",TBL_FloresEDecoração[[#This Row],[REAL]]=\"\"),\"\",TBL_FloresEDecoração[[#This Row],[ESTIMATIVA]]-TBL_FloresEDecoração[[#This Row],[REAL]])","v":""}]
[null,"Iluminação",{"v":200,"d":"200.00 €"},null,{"$f":"IF(OR(TBL_FloresEDecoração[[#This Row],[ESTIMATIVA]]=\"\",TBL_FloresEDecoração[[#This Row],[REAL]]=\"\"),\"\",TBL_FloresEDecoração[[#This Row],[ESTIMATIVA]]-TBL_FloresEDecoração[[#This Row],[REAL]])","v":""}]
[null,"Taxas diversas",{"v":100,"d":"100.00 €"},null,{"$f":"IF(OR(TBL_FloresEDecoração[[#This Row],[ESTIMATIVA]]=\"\",TBL_FloresEDecoração[[#This Row],[REAL]]=\"\"),\"\",TBL_FloresEDecoração[[#This Row],[ESTIMATIVA]]-TBL_FloresEDecoração[[#This Row],[REAL]])","v":""}]
[null,"TOTAL DE FLORES E DECORAÇÕES",{"$f":"SUBTOTAL(109,TBL_FloresEDecoração[ESTIMATIVA])","v":{"v":3000,"d":"3,000.00 €"}},{"$f":"SUBTOTAL(109,TBL_FloresEDecoração[REAL])","v":{"v":0,"d":"0.00 €"}},{"$f":"TBL_FloresEDecoração[[#Totals],[ESTIMATIVA]]-TBL_FloresEDecoração[[#Totals],[REAL]]","v":{"v":3000,"d":"3,000.00 €"}}]
[]
[]
[null,"MÚSICA","ESTIMATIVA","REAL","DESVIO"]
[null,"Músicos para a cerimônia",{"v":700,"d":"700.00 €"},null,{"$f":"IF(OR(TBL_Música[[#This Row],[ESTIMATIVA]]=\"\",TBL_Música[[#This Row],[REAL]]=\"\"),\"\",TBL_Música[[#This Row],[ESTIMATIVA]]-TBL_Música[[#This Row],[REAL]])","v":""}]
[null,"Músicos para a hora de cocktails",{"v":300,"d":"300.00 €"},null,{"$f":"IF(OR(TBL_Música[[#This Row],[ESTIMATIVA]]=\"\",TBL_Música[[#This Row],[REAL]]=\"\"),\"\",TBL_Música[[#This Row],[ESTIMATIVA]]-TBL_Música[[#This Row],[REAL]])","v":""}]
[null,"Banda para o copo-de-água, DJ ou animação",{"v":200,"d":"200.00 €"},null,{"$f":"IF(OR(TBL_Música[[#This Row],[ESTIMATIVA]]=\"\",TBL_Música[[#This Row],[REAL]]=\"\"),\"\",TBL_Música[[#This Row],[ESTIMATIVA]]-TBL_Música[[#This Row],[REAL]])","v":""}]
[null,"Aluguer de sistema de som ou de pista de dança",{"v":400,"d":"400.00 €"},null,{"$f":"IF(OR(TBL_Música[[#This Row],[ESTIMATIVA]]=\"\",TBL_Música[[#This Row],[REAL]]=\"\"),\"\",TBL_Música[[#This Row],[ESTIMATIVA]]-TBL_Música[[#This Row],[REAL]])","v":""}]
[null,"Taxas diversas",{"v":200,"d":"200.00 €"},null,{"$f":"IF(OR(TBL_Música[[#This Row],[ESTIMATIVA]]=\"\",TBL_Música[[#This Row],[REAL]]=\"\"),\"\",TBL_Música[[#This Row],[ESTIMATIVA]]-TBL_Música[[#This Row],[REAL]])","v":""}]
[null,"TOTAL DE MÚSICA",{"$f":"SUBTOTAL(109,TBL_Música[ESTIMATIVA])","v":{"v":1800,"d":"1,800.00 €"}},{"$f":"SUBTOTAL(109,TBL_Música[REAL])","v":{"v":0,"d":"0.00 €"}},{"$f":"TBL_Música[[#Totals],[ESTIMATIVA]]-TBL_Música[[#Totals],[REAL]]","v":{"v":1800,"d":"1,800.00 €"}}]
[]
[]
[null,"FOTOGRAFIAS E VÍDEO","ESTIMATIVA","REAL","DESVIO"]
[null,"Fotografia",{"v":1000,"d":"1,000.00 €"},null,{"$f":"IF(OR(TBL_FotografiasEVídeo[[#This Row],[ESTIMATIVA]]=\"\",TBL_FotografiasEVídeo[[#This Row],[REAL]]=\"\"),\"\",TBL_FotografiasEVídeo[[#This Row],[ESTIMATIVA]]-TBL_FotografiasEVídeo[[#This Row],[REAL]])","v":""}]
[null,"Vídeos",{"v":800,"d":"800.00 €"},null,{"$f":"IF(OR(TBL_FotografiasEVídeo[[#This Row],[ESTIMATIVA]]=\"\",TBL_FotografiasEVídeo[[#This Row],[REAL]]=\"\"),\"\",TBL_FotografiasEVídeo[[#This Row],[ESTIMATIVA]]-TBL_FotografiasEVídeo[[#This Row],[REAL]])","v":""}]
[null,"Impressão e álbuns adicionais",{"v":500,"d":"500.00 €"},null,{"$f":"IF(OR(TBL_FotografiasEVídeo[[#This Row],[ESTIMATIVA]]=\"\",TBL_FotografiasEVídeo[[#This Row],[REAL]]=\"\"),\"\",TBL_FotografiasEVídeo[[#This Row],[ESTIMATIVA]]-TBL_FotografiasEVídeo[[#This Row],[REAL]])","v":""}]
[null,"Taxas diversas",{"v":200,"d":"200.00 €"},null,{"$f":"IF(OR(TBL_FotografiasEVídeo[[#This Row],[ESTIMATIVA]]=\"\",TBL_FotografiasEVídeo[[#This Row],[REAL]]=\"\"),\"\",TBL_FotografiasEVídeo[[#This Row],[ESTIMATIVA]]-TBL_FotografiasEVídeo[[#This Row],[REAL]])","v":""}]
[null,"TOTAL DE FOTOGRAFIA E VÍDEO",{"$f":"SUBTOTAL(109,TBL_FotografiasEVídeo[ESTIMATIVA])","v":{"v":2500,"d":"2,500.00 €"}},{"$f":"SUBTOTAL(109,TBL_FotografiasEVídeo[REAL])","v":{"v":0,"d":"0.00 €"}},{"$f":"TBL_FotografiasEVídeo[[#Totals],[ESTIMATIVA]]-TBL_FotografiasEVídeo[[#Totals],[REAL]]","v":{"v":2500,"d":"2,500.00 €"}}]
[]
[]
[null,"LEMBRANÇAS E PRESENTES","ESTIMATIVA","REAL","DESVIO"]
[null,"Presentes de boas-vindas",{"v":700,"d":"700.00 €"},null,{"$f":"IF(OR(TBL_LembrançasEPresentes[[#This Row],[ESTIMATIVA]]=\"\",TBL_LembrançasEPresentes[[#This Row],[REAL]]=\"\"),\"\",TBL_LembrançasEPresentes[[#This Row],[ESTIMATIVA]]-TBL_LembrançasEPresentes[[#This Row],[REAL]])","v":""}]
[null,"Presentes para a festa",{"v":200,"d":"200.00 €"},null,{"$f":"IF(OR(TBL_LembrançasEPresentes[[#This Row],[ESTIMATIVA]]=\"\",TBL_LembrançasEPresentes[[#This Row],[REAL]]=\"\"),\"\",TBL_LembrançasEPresentes[[#This Row],[ESTIMATIVA]]-TBL_LembrançasEPresentes[[#This Row],[REAL]])","v":""}]
[null,"Taxas diversas",{"v":200,"d":"200.00 €"},null,{"$f":"IF(OR(TBL_LembrançasEPresentes[[#This Row],[ESTIMATIVA]]=\"\",TBL_LembrançasEPresentes[[#This Row],[REAL]]=\"\"),\"\",TBL_LembrançasEPresentes[[#This Row],[ESTIMATIVA]]-TBL_LembrançasEPresentes[[#This Row],[REAL]])","v":""}]
[null,"TOTAL DE LEMBRANÇAS E PRESENTES",{"$f":"SUBTOTAL(109,TBL_LembrançasEPresentes[ESTIMATIVA])","v":{"v":1100,"d":"1,100.00 €"}},{"$f":"SUBTOTAL(109,TBL_LembrançasEPresentes[REAL])","v":{"v":0,"d":"0.00 €"}},{"$f":"TBL_LembrançasEPresentes[[#Totals],[ESTIMATIVA]]-TBL_LembrançasEPresentes[[#Totals],[REAL]]","v":{"v":1100,"d":"1,100.00 €"}}]
[]
[]
[null,"CERIMÓNIA","ESTIMATIVA","REAL","DESVIO"]
[null,"Taxa do local",{"v":500,"d":"500.00 €"},null,{"$f":"IF(OR(TBL_Cerimónia[[#This Row],[ESTIMATIVA]]=\"\",TBL_Cerimónia[[#This Row],[REAL]]=\"\"),\"\",TBL_Cerimónia[[#This Row],[ESTIMATIVA]]-TBL_Cerimónia[[#This Row],[REAL]])","v":""}]
[null,"Taxa para o oficiante ou donativo à igreja",{"v":200,"d":"200.00 €"},null,{"$f":"IF(OR(TBL_Cerimónia[[#This Row],[ESTIMATIVA]]=\"\",TBL_Cerimónia[[#This Row],[REAL]]=\"\"),\"\",TBL_Cerimónia[[#This Row],[ESTIMATIVA]]-TBL_Cerimónia[[#This Row],[REAL]])","v":""}]
[null,"Taxas diversas",{"v":100,"d":"100.00 €"},null,{"$f":"IF(OR(TBL_Cerimónia[[#This Row],[ESTIMATIVA]]=\"\",TBL_Cerimónia[[#This Row],[REAL]]=\"\"),\"\",TBL_Cerimónia[[#This Row],[ESTIMATIVA]]-TBL_Cerimónia[[#This Row],[REAL]])","v":""}]
[null,"TOTAL DE CERIMÓNIA",{"$f":"SUBTOTAL(109,TBL_Cerimónia[ESTIMATIVA])","v":{"v":800,"d":"800.00 €"}},{"$f":"SUBTOTAL(109,TBL_Cerimónia[REAL])","v":{"v":0,"d":"0.00 €"}},{"$f":"TBL_Cerimónia[[#Totals],[ESTIMATIVA]]-TBL_Cerimónia[[#Totals],[REAL]]","v":{"v":800,"d":"800.00 €"}}]
[]
[]
[null,"ARTIGOS DE PAPELARIA","ESTIMATIVA","REAL","DESVIO"]
[null,"Cartões de lembrete",{"v":50,"d":"50.00 €"},null,{"$f":"IF(OR(TBL_ArtigosDePapelaria[[#This Row],[ESTIMATIVA]]=\"\",TBL_ArtigosDePapelaria[[#This Row],[REAL]]=\"\"),\"\",TBL_ArtigosDePapelaria[[#This Row],[ESTIMATIVA]]-TBL_ArtigosDePapelaria[[#This Row],[REAL]])","v":""}]
[null,"Convites e confirmações de presença",{"v":100,"d":"100.00 €"},null,{"$f":"IF(OR(TBL_ArtigosDePapelaria[[#This Row],[ESTIMATIVA]]=\"\",TBL_ArtigosDePapelaria[[#This Row],[REAL]]=\"\"),\"\",TBL_ArtigosDePapelaria[[#This Row],[ESTIMATIVA]]-TBL_ArtigosDePapelaria[[#This Row],[REAL]])","v":""}]
[null,"Programas",{"v":50,"d":"50.00 €"},null,{"$f":"IF(OR(TBL_ArtigosDePapelaria[[#This Row],[ESTIMATIVA]]=\"\",TBL_ArtigosDePapelaria[[#This Row],[REAL]]=\"\"),\"\",TBL_ArtigosDePapelaria[[#This Row],[ESTIMATIVA]]-TBL_ArtigosDePapelaria[[#This Row],[REAL]])","v":""}]
[null,"Cartões de assentos e lugares",{"v":50,"d":"50.00 €"},null,{"$f":"IF(OR(TBL_ArtigosDePapelaria[[#This Row],[ESTIMATIVA]]=\"\",TBL_ArtigosDePapelaria[[#This Row],[REAL]]=\"\"),\"\",TBL_ArtigosDePapelaria[[#This Row],[ESTIMATIVA]]-TBL_ArtigosDePapelaria[[#This Row],[REAL]])","v":""}]
[null,"Menus",{"v":50,"d":"50.00 €"},null,{"$f":"IF(OR(TBL_ArtigosDePapelaria[[#This Row],[ESTIMATIVA]]=\"\",TBL_ArtigosDePapelaria[[#This Row],[REAL]]=\"\"),\"\",TBL_ArtigosDePapelaria[[#This Row],[ESTIMATIVA]]-TBL_ArtigosDePapelaria[[#This Row],[REAL]])","v":""}]
[null,"Notas de agradecimento",{"v":50,"d":"50.00 €"},null,{"$f":"IF(OR(TBL_ArtigosDePapelaria[[#This Row],[ESTIMATIVA]]=\"\",TBL_ArtigosDePapelaria[[#This Row],[REAL]]=\"\"),\"\",TBL_ArtigosDePapelaria[[#This Row],[ESTIMATIVA]]-TBL_ArtigosDePapelaria[[#This Row],[REAL]])","v":""}]
[null,"Correio",{"v":50,"d":"50.00 €"},null,{"$f":"IF(OR(TBL_ArtigosDePapelaria[[#This Row],[ESTIMATIVA]]=\"\",TBL_ArtigosDePapelaria[[#This Row],[REAL]]=\"\"),\"\",TBL_ArtigosDePapelaria[[#This Row],[ESTIMATIVA]]-TBL_ArtigosDePapelaria[[#This Row],[REAL]])","v":""}]
[null,"Taxas diversas",{"v":100,"d":"100.00 €"},null,{"$f":"IF(OR(TBL_ArtigosDePapelaria[[#This Row],[ESTIMATIVA]]=\"\",TBL_ArtigosDePapelaria[[#This Row],[REAL]]=\"\"),\"\",TBL_ArtigosDePapelaria[[#This Row],[ESTIMATIVA]]-TBL_ArtigosDePapelaria[[#This Row],[REAL]])","v":""}]
[null,"TOTAL DE ARTIGOS DE PAPELARIA",{"$f":"SUBTOTAL(109,TBL_ArtigosDePapelaria[ESTIMATIVA])","v":{"v":500,"d":"500.00 €"}},{"$f":"SUBTOTAL(109,TBL_ArtigosDePapelaria[REAL])","v":{"v":0,"d":"0.00 €"}},{"$f":"TBL_ArtigosDePapelaria[[#Totals],[ESTIMATIVA]]-TBL_ArtigosDePapelaria[[#Totals],[REAL]]","v":{"v":500,"d":"500.00 €"}}]
[]
[]
[null,"ALIANÇAS","ESTIMATIVA","REAL","DESVIO"]
[null,"Alianças",{"v":1000,"d":"1,000.00 €"},null,{"$f":"IF(OR(TBL_Alianças[[#This Row],[ESTIMATIVA]]=\"\",TBL_Alianças[[#This Row],[REAL]]=\"\"),\"\",TBL_Alianças[[#This Row],[ESTIMATIVA]]-TBL_Alianças[[#This Row],[REAL]])","v":""}]
[null,"Acessórios para alianças",{"v":100,"d":"100.00 €"},null,{"$f":"IF(OR(TBL_Alianças[[#This Row],[ESTIMATIVA]]=\"\",TBL_Alianças[[#This Row],[REAL]]=\"\"),\"\",TBL_Alianças[[#This Row],[ESTIMATIVA]]-TBL_Alianças[[#This Row],[REAL]])","v":""}]
[null,"TOTAL DE ALIANÇAS",{"$f":"SUBTOTAL(109,TBL_Alianças[ESTIMATIVA])","v":{"v":1100,"d":"1,100.00 €"}},{"$f":"SUBTOTAL(109,TBL_Alianças[REAL])","v":{"v":0,"d":"0.00 €"}},{"$f":"TBL_Alianças[[#Totals],[ESTIMATIVA]]-TBL_Alianças[[#Totals],[REAL]]","v":{"v":1100,"d":"1,100.00 €"}}]
[]
[]
[null,"TRANSPORTE","ESTIMATIVA","REAL","DESVIO"]
[null,"Aluguer de carro principal",{"v":100,"d":"100.00 €"},null,{"$f":"IF(OR(TBL_Transporte[[#This Row],[ESTIMATIVA]]=\"\",TBL_Transporte[[#This Row],[REAL]]=\"\"),\"\",TBL_Transporte[[#This Row],[ESTIMATIVA]]-TBL_Transporte[[#This Row],[REAL]])","v":""}]
[null,"Aluguer de carro para convidados",{"v":100,"d":"100.00 €"},null,{"$f":"IF(OR(TBL_Transporte[[#This Row],[ESTIMATIVA]]=\"\",TBL_Transporte[[#This Row],[REAL]]=\"\"),\"\",TBL_Transporte[[#This Row],[ESTIMATIVA]]-TBL_Transporte[[#This Row],[REAL]])","v":""}]
[null,"Transporte para convidados de fora da cidade",{"v":100,"d":"100.00 €"},null,{"$f":"IF(OR(TBL_Transporte[[#This Row],[ESTIMATIVA]]=\"\",TBL_Transporte[[#This Row],[REAL]]=\"\"),\"\",TBL_Transporte[[#This Row],[ESTIMATIVA]]-TBL_Transporte[[#This Row],[REAL]])","v":""}]
[null,"Arrumador",{"v":50,"d":"50.00 €"},null,{"$f":"IF(OR(TBL_Transporte[[#This Row],[ESTIMATIVA]]=\"\",TBL_Transporte[[#This Row],[REAL]]=\"\"),\"\",TBL_Transporte[[#This Row],[ESTIMATIVA]]-TBL_Transporte[[#This Row],[REAL]])","v":""}]
[null,"Taxas diversas",{"v":100,"d":"100.00 €"},null,{"$f":"IF(OR(TBL_Transporte[[#This Row],[ESTIMATIVA]]=\"\",TBL_Transporte[[#This Row],[REAL]]=\"\"),\"\",TBL_Transporte[[#This Row],[ESTIMATIVA]]-TBL_Transporte[[#This Row],[REAL]])","v":""}]
[null,"TOTAL DE TRANSPORTE",{"$f":"SUBTOTAL(109,TBL_Transporte[ESTIMATIVA])","v":{"v":450,"d":"450.00 €"}},{"$f":"SUBTOTAL(109,TBL_Transporte[REAL])","v":{"v":0,"d":"0.00 €"}},{"$f":"TBL_Transporte[[#Totals],[ESTIMATIVA]]-TBL_Transporte[[#Totals],[REAL]]","v":{"v":450,"d":"450.00 €"}}]